Cogmind - Beta 16 @@@ ROGUE MODE // 2025.11.18 @ 21:51:03 Player: ErikJake Result: Destroyed by G-47 Trooper with Particle Gun Performance ------------- Evolutions (0) 0 Regions Visited (1) 200 Robots Destroyed (14) 70 Value Destroyed (199) 199 Prototype IDs (0) 0 Alien Tech Used (0) 0 Bonus (0) 0 TOTAL SCORE: 469 Bonus ------- None Cogmind --------- Core Integrity 0/250 Matter 30/300 Energy 100/100 System Corruption 0% Temperature Cool (9) Movement Core (200) Ox3 Location -10/Materials Parts ------- > --- POWER (1) -------- (None) > --- PROPULSION (2) --- (None) > --- UTILITY (2) ------ Medium Storage Unit > --- WEAPON (2) ------- (None) > --- INVENTORY (10) --- Light Ion Engine Light Ion Engine Compact Wheel Compact Wheel Small Laser Small Laser Grenade Launcher Datajack Peak State ------------ > --- POWER ------------ Light Ion Engine > --- PROPULSION ------- Aluminum Leg Aluminum Leg > --- UTILITY ---------- Small Storage Unit Seismic Detector > --- WEAPON ----------- Small Laser Assault Rifle > --- INVENTORY -------- Light Ion Engine Compact Wheel Compact Wheel Small Laser [Rating: 7] Favorites ----------- Power Ion Engine Engine Ion Engine Propulsion Aluminum Leg Leg Aluminum Leg Utility Seismic Detector Device Seismic Detector Storage Small Storage Unit Weapon Assault Rifle Energy Gun Small Laser Ballistic Gun Assault Rifle Launcher Grenade Launcher Build | -11 -10 ------- Run | Yrd Mat Slots Evolved . | . . Power . | . . Propulsion . | . . Utility . | . . Weapon . | . . Parts Attached 12 | 7 5 Power 2 | 1 1 Engine 2 | 1 1 Core . | . . Reactor . | . . Propulsion 2 | 2 . Treads . | . . Leg 2 | 2 . Wheel . | . . Hover . | . . Flight . | . . Utility 3 | 2 1 Device 1 | 1 . Storage 2 | 1 1 Processor . | . . Hackware . | . . Protection . | . . Artifact . | . . Weapon 5 | 2 3 Energy Gun 2 | 1 1 Energy Cannon . | . . Ballistic Gun 2 | 1 1 Ballistic Cannon . | . . Launcher 1 | . 1 Special Weapon . | . . Impact Weapon . | . . Slashing Weapon . | . . Piercing Weapon . | . . Special Melee Weapon . | . . Unidentified Prototypes . | . . Parts Lost 6 | . 6 Power 1 | . 1 Propulsion 2 | . 2 Utility 1 | . 1 Weapon 2 | . 2 Highest Loss Streak 6 | . 6 To Critical Strikes . | . . Average Backups 6 | 2 6 Power 1 | . 1 Propulsion 1 | 1 2 Utility . | . . Weapon 2 | . 2 Tool/Special . | . . Unused Backups 4 | . 4 Power 1 | . 1 Propulsion 2 | . 2 Utility . | . . Weapon . | . . Tool/Special 1 | . 1 Average Slot Usage (%) 97 | . 97 Engine 13 | . 13 Leg 27 | . 27 Device 14 | . 14 Storage 14 | . 14 Energy Gun 5 | . 5 Ballistic Gun 21 | . 21 Peak Build Rating 7 | 7 7 Average Rating 6 | 5 6 On Entrance 3 | . 7 Avg Prop Armor Cover (%) . | . . Naked Turns . | . . Heaviest Build 20 | 12 20 Greatest Support 20 | 20 20 Greatest Overweight (x) 4 | . 4 Average Overweight (x) . | . . Largest Inventory Capacity 10 | 8 10 Average Capacity 8 | 7 8 Most Carried 8 | 5 8 Average Carried 6 | 2 6 Final Capacity 10 | 8 10 Final Carried 8 | 4 8 Class Distribution -------------------- 100% | Mutant Dominant Class ---------------- Mutant | -10/Materials Resources | -11 -10 ----------- Run | Yrd Mat Matter Collected 309 | 288 21 Remotely . | . . Salvage Created 337 | 110 227 Parts 22 | 7 15 Haulers Intercepted . | . . Recyclers Shooed 1 | . 1 Parts Field Recycled . | . . Retrieved Matter . | . . Parts Self-Destructed . | . . Prevented . | . . Parts Restored . | . . Kills | -11 -10 ------- Run | Yrd Mat Combat Hostiles Destroyed 9 | . 9 Guns 5 | . 5 AOE 4 | . 4 Classes Destroyed 6 | 2 4 Worker 1 | . 1 Tunneler 2 | 2 . Recycler 1 | 1 . Operator 1 | . 1 Swarmer 6 | . 6 Grunt 3 | . 3 Best Kill Streak 3 | 3 3 Combat Bots Only 3 | . 3 Max Kills in Single Turn 2 | 1 2 Gunslinging . | . . Exploded 2 | . 2 Melee . | . . Uniques/NPCs Destroyed . | . . Combat | -11 -10 -------- Run | Yrd Mat Hostile Shots Fired 97 | . 97 Missed 29 | . 29 Hits 68 | . 68 Projectile 68 | . 68 Critical Strikes 1 | . 1 Damage Taken 813 | . 813 Core 251 | . 251 Absorbed by Shields . | . . Core Remaining (%) 100 | 100 . Volleys Fired 41 | 6 35 Largest 2 | 2 2 Hottest 60 | 60 60 Shots Fired 81 | 12 69 Gun 74 | 12 62 Cannon . | . . Launcher 7 | . 7 Special . | . . Kinetic 63 | 6 57 Thermal 11 | 6 5 Explosive 7 | . 7 Electromagnetic . | . . Robot Hit Streak 7 | 4 7 Robot Miss Streak 3 | 2 3 Penetration Max . | . . Secondary Targets . | . . Shots Hit Robots 38 | 8 30 Core Hits 20 | 4 16 Critical Kills . | . . Critical Parts Destroyed 1 | . 1 Critical Strikes 1 | . 1 Destroy 1 | . 1 Melee Attacks . | . . Impact . | . . Slashing . | . . Piercing . | . . Sneak Attacks . | . . Combat Hostiles . | . . Follow-up Attacks . | . . Damage Inflicted 774 | 94 680 Guns 422 | 94 328 Cannons . | . . Explosions 352 | . 352 Melee . | . . Ramming . | . . Kinetic 370 | 63 307 Thermal 52 | 31 21 Explosive 352 | . 352 Electromagnetic . | . . Impact . | . . Slashing . | . . Piercing . | . . Highest Corruption . | . . Average Corruption . | . . Corruption Purged . | . . Corruption Blocked . | . . Overload Shots . | . . Overflow Damage 8 | . 8 Projectiles . | . . Explosions 8 | . 8 Melee . | . . Knockbacks . | . . Impact . | . . Kinetic . | . . Secondary . | . . Self-Inflicted Damage 29 | . 29 Shots 1 | . 1 Rammed . | . . Targets Rammed . | . . Kicked . | . . Crushed . | . . Highest Temperature 5 | . 5 Average Temperature 4 | . 4 Received Heat Transfer 390 | . 390 Siege Activations . | . . Martial Activations . | . . Shielding Activations . | . . Robots Disrupted . | . . Combat Hostiles . | . . Robots Corrupted . | . . Combat Hostiles . | . . Parts Fried . | . . Impact Corruptions . | . . Robots Melted . | . . Combat Hostiles . | . . Parts Melted . | . . Heat Transferred 125 | 75 50 Parts Sabotaged . | . . Parts Stolen . | . . Parts Stripped . | . . Power Chain Reactions . | . . Alert | -11 -10 ------- Run | Yrd Mat Maximum Alert Level . | . . Low Security (%) 100 | 100 100 Level 1 . | . . Level 2 . | . . Level 3 . | . . Level 4 . | . . Level 5 . | . . High Security . | . . Max Security . | . . Peak Influence 91 | 15 91 Initial 3 | . 3 Average 27 | 2 30 Influence Increases 318 | 15 303 Destroy 0b10 Robot/C 180 | . 180 Destroy 0b10 Robot/NC 25 | 15 10 Destroy Leader 40 | . 40 Successful Hack 9 | . 9 Destroy Structure 34 | . 34 Lose Combat Pursuer 30 | . 30 Influence Decreases 303 | 10 293 Entered New Map 2 | . 2 Time Decay 251 | 10 241 Lost Part 50 | . 50 Squads Dispatched 4 | . 4 Investigation . | . . Extermination . | . . Reinforcement 4 | . 4 Assault . | . . Garrison . | . . Intercept . | . . Searches Triggered . | . . Construction Impeded . | . . Haulers Reinforced . | . . Active Scanning Responses . | . . Cargo Convoy Interrupts . | . . Stealth | -11 -10 --------- Run | Yrd Mat Distress Signals 2 | . 2 Communications Jammed . | . . Distress Signals . | . . Times Spotted 23 | . 23 Peak Tracking Total 7 | . 7 Tactical Retreats 2 | . 2 Traps | -11 -10 ------- Run | Yrd Mat Traps Triggered . | . . Indirectly . | . . Trap Hack Attempts . | . . Triggered . | . . Disarmed . | . . Reprogrammed . | . . Reused . | . . Traps Extracted . | . . Installed . | . . Triggered . | . . Machines | -11 -10 ---------- Run | Yrd Mat Machines Disabled . | . . Max in Single Turn . | . . Machines Repaired . | . . Machines Dismantled . | . . Machines Sabotaged . | . . Overloaded Fab Kills . | . . Hacking | -11 -10 --------- Run | Yrd Mat Machines Accessed 2 | . 2 Terminals 2 | . 2 Fabricators . | . . Repair Stations . | . . Recycling Units . | . . Scanalyzers . | . . Garrison Access . | . . Total Hacks 8 | . 8 Successful 5 | . 5 Failed 3 | . 3 Catastrophic 1 | . 1 Database Lockouts . | . . Manual 1 | . 1 Terminals 8 | . 8 Fabricators . | . . Repair Stations . | . . Recycling Units . | . . Scanalyzers . | . . Garrison Access . | . . Terminal Hacks 5 | . 5 Record 2 | . 2 Branch Access Points 1 | . 1 Alert Level 2 | . 2 Fabricator Hacks . | . . Repair Station Hacks . | . . Recycling Unit Hacks . | . . Scanalyzer . | . . Garrison Access Hacks . | . . Unauthorized Hacks . | . . Terminals . | . . Fabricators . | . . Repair Stations . | . . Recycling Units . | . . Scanalyzers . | . . Garrison Access . | . . Data Cores Recovered . | . . Used . | . . Hacking Detections 2 | . 2 Full Trace Events . | . . Feedback Events . | . . Feedback Blocked . | . . Robot Schematics Acquired . | . . Robots Built . | . . Authchips . | . . Time . | . . Total Robot Build Rating . | . . Part Schematics Acquired . | . . Parts Built . | . . Authchips . | . . Time . | . . Total Part Build Rating . | . . Part Studies Acquired . | . . Parts Repaired . | . . Time . | . . Parts Recycled . | . . Recycled Matter . | . . Retrieved Matter . | . . Retrieved Components . | . . Parts Scanalyzed . | . . Part Schematics Acquired . | . . Parts Damaged . | . . Bothacking | -11 -10 ------------ Run | Yrd Mat Used RIF Installer . | . . Robots Hacked . | . . Non-combat . | . . Combat . | . . Robot Hacks Applied . | . . Relay Couplers Released . | . . Fabnet Peak Effective % . | . . Robots Rewired . | . . Allies Hacked . | . . Hacks Repelled . | . . Allies | -11 -10 -------- Run | Yrd Mat Total Allies . | . . Largest Group . | . . Highest-Rated Group . | . . Highest-Rated Ally . | . . Total Orders . | . . Ally Attacks . | . . Total Damage . | . . Kills . | . . Allies Corrupted . | . . Allies Melted . | . . Intel | -11 -10 ------- Run | Yrd Mat Active Infowar (turns) 853 | 12 841 Seismic 853 | 12 841 Robot Analysis Total . | . . Derelict Logs Recovered . | . . Drone Launches . | . . Drone Recoveries . | . . Exploration | -11 -10 ------------- Run | Yrd Mat Turns Passed 946 | 98 848 Spaces Moved 498 | 57 441 Core 15 | 4 11 Treads . | . . Legs 483 | 53 430 Wheels . | . . Hover . | . . Flight . | . . Fastest Speed 50 | 50 120 Average Speed 122 | 115 123 Slowest Speed 250 | 120 250 Overloaded Moves . | . . Propulsion Burnouts . | . . Robots Hopped . | . . Potential Cave-ins . | . . Cave-ins Triggered . | . . Exploration Rate (%) 40 | 4 76 Regions Visited 1 Branch Regions . Pre-discovered Areas . | . . Known Exits Taken . | . . Unknown Exits Taken 1 | 1 . Scrap Searched . | . . Spaces Dug . | . . Terrain Destroyed 33 | . 33 Melee . | . . Projectile . | . . AOE 33 | . 33 Terrain Rammed . | . . Walls Destroyed . | . . Machines Disabled . | . . Actions | -11 -10 --------- Run | Yrd Mat Total 748 | 74 674 Wait 184 | . 184 Move 497 | 56 441 Hop . | . . Pick Up 10 | 5 5 Fast Attach 7 | 6 1 Attach 1 | 1 . Detach . | . . Swap 7 | . 7 Drop 1 | . 1 Fire 41 | 6 35 Melee . | . . Ram . | . . Kick . | . . Crush . | . . Escape Stasis . | . . Rewire . | . . Trap . | . . Miscellaneous . | . . Route ------- -11/Scrapyard -10/Materials (discovered 4 exits: [*Mat x3] / Min) History --------- Turn | Location | Event 44 | -11/Scrapyard | Discovered new exit (range 16) 99 | -11/Scrapyard | Entered Materials 154 | -10/Materials | Identified exit to Mines 316 | -10/Materials | Build established: Mutant 374 | -10/Materials | Discovered new exit (range 15) 629 | -10/Materials | Discovered new exit (range 12) 789 | -10/Materials | Discovered new exit (range 11) 826 | -10/Materials | Core integrity fell below 50% 922 | -10/Materials | Core integrity fell below 20% 947 | -10/Materials | Destroyed by G-47 Trooper with Particle Gun Last Messages --------------- (Destroy). 00826_ Destroyed Aluminum Leg. 00829_ R-06 Scavenger collects Sml. Laser. 00829_ G-34 Mercenary destroyed. 00831_ R-06 Scavenger collects Ion Engine. 00832_ R-06 Scavenger collects Heat Sink. 00835_ G-34 Mercenary destroyed. 00838_ R-06 Scavenger collects Aluminum Leg. 00839_ R-06 Scavenger collects Sml. Laser. 00841_ Destroyed Datajack. 00842_ K-01 Serf collects debris. 00844_ Destroyed Hover Unit. 00846_ K-01 Serf collects debris. 00905_ Ion Engine destroyed. 00907_ Assault Rifle destroyed. 00916_ Aluminum Leg destroyed. 00916_ Critical hit (Burn: +37). 00923_ Aluminum Leg destroyed. 00936_ Assault Rifle destroyed. 00940_ Seismic Detector destroyed. Map ----- +----------------------------------------------------+ | | | ???????????#############?????? | | ???????????# #?????? | | ???????????# """ ""#?????? | | ???????????# """ T"#?????? | | ???????????# """ ""#?????? | | ?#########?# #?????? | | # =#?# #?##### | | # """ #?# ! #?# # | | # """ ###########+###### ## | | # """ # | | # + | | # """ # | | # """ ####+########## | | # """ #? ???????# | | # ^g # """ #??????# ### | | #####/#### "Y" #??????# ### | | ????#g#??# #??????# # | | ????# #??# #??????# # " | | ????# #??# #??????# # " | | ????# #??#+######??????# # " | | ????# #??? ????????????# # | | ????# #??? ????????????# # | | ????# #??? ????????????+ ### | | ????# #??# #???????????# | | ????#@#??# #???????????# | | ????# #??# #???????????# | | ########## #???????????# ### | | # # #???????????# ??? | | # # #????????????? ???? | | # """ # ############# #?? | | # """"" # #?? | | # """"" + #?? | | # """"" # #?? | | # """ ###/############ #??? | | # #?# # #??? | | # #?# # #??? | | #######+##?# # #??? | | ??????# #??# # #??? | | ?????## #### # #??? | | ?????## #T ######+####### #### | | ?????# * | | ?????# =% | | ?????# = | | ?###### ####+###### | | # #?????????? | | # """ +?????????? | | # """ # ########?????????? | | ? """ # #+#######??????????? | | ? + + #??????????? | +----------------------------------------------------+ Best States ------------- Heat Dissipation 25 Energy Generation 10 Energy Capacity 250 Matter Stores 300 Matter Capacity 300 Sight Range 16 Terrain Scan Density 10 Evasion (%) 55 Item Schematics ----------------- None Robot Schematics ------------------ None Fabricated ------------ Nothing Repaired ---------- Nothing Studied --------- None Alien Tech Used ----------------- None Achievements -------------- DATA ERROR: Steam Global Achievement% Organ Harvest Challenges ------------ None Game ------ Seed PulseGatlingCartridge Manual? 0 Play Time 00:18:58 Cumulative 36.2 hours Start 2025.11.18 @ 21:29:37 End 2025.11.18 @ 21:51:03 Sessions 1 Manual Loads 0 Difficulty Rogue Special Mode None Game No. 42 Rogue 42 Adventurer 0 Explorer 0 Win Type - Total 1 Types 1/0/0/0/0/0/0/0/0/0 Lore% 7 Gallery% 24 Achievement% 15 Wizard Run 0 Options --------- Layout 2 ASCII 0 Keyboard 1 Movement Numpad Keybinds 0 Fullscreen 1 Font 24/Smallcaps Map View 50x44 Zoom Use 0% Tactical HUD 1 Map Filters NONE Filters NONE Steam 1 RUN: 683eb6cd-f1f7-4920-8f2d-820ab1960547